Cogmind - Beta 17.1 @@@ ROGUE MODE // 2026.09.07 @ 08:09:33 Player: Zetadar Result: Destroyed by D-53 Grenadier with Mini Grenade Launcher Performance ------------- Evolutions (0) 0 Regions Visited (4) 800 Robots Destroyed (22) 110 Value Destroyed (463) 463 Prototype IDs (24) 480 Alien Tech Used (0) 0 Bonus (307) 307 TOTAL SCORE: 2160 Bonus ------- Follower Combat Kills 7 Aligned with FarCom 300 Cogmind --------- Core Integrity 0/250 Matter 266/300 Energy 100/100 System Corruption 12% Temperature Cool (0) Movement Core (350) Ox6 Location -9/Mines Parts ------- > --- POWER (1) -------- (None) > --- PROPULSION (2) --- (None) > --- UTILITY (2) ------ Large Storage Unit Experimental Sensor Array > --- WEAPON (2) ------- (None) > --- INVENTORY (15) --- Aluminum Leg Aluminum Leg Aluminum Leg Large Storage Unit Peak State ------------ > --- POWER ------------ Ion Engine > --- PROPULSION ------- Aluminum Leg Carbon-fiber Leg > --- UTILITY ---------- Large Storage Unit Core Shielding > --- WEAPON ----------- Latent Energy Streamer Improved Light Cannon > --- INVENTORY -------- Ion Engine Light Treads Light Treads Aluminum Leg Aluminum Leg Aluminum Leg Large Storage Unit Experimental Sensor Array Improved Light Cannon Improved Light Cannon Improved Light Cannon Grenade Launcher Blade Trap Blade Trap Signal Generator [Rating: 22] Favorites ----------- Power Ion Engine Engine Ion Engine Propulsion Aluminum Leg Treads Light Treads Leg Aluminum Leg Utility Large Storage Unit Device Experimental Sensor Array Storage Large Storage Unit Protection Core Shielding Weapon Improved Light Cannon Energy Cannon Latent Energy Streamer Ballistic Gun Light Assault Rifle Ballistic Cannon Improved Light Cannon Launcher Grenade Launcher Build | -11 -10 -10 -10 -9 ------- Run | Yrd Mat Min Exi Min Slots Evolved . | . . . . . Power . | . . . . . Propulsion . | . . . . . Utility . | . . . . . Weapon . | . . . . . Parts Attached 26 | 5 6 2 . 13 Power 3 | 1 . . . 2 Engine 3 | 1 . . . 2 Core . | . . . . . Reactor . | . . . . . Propulsion 9 | 2 . 1 . 6 Treads 2 | . . . . 2 Leg 7 | 2 . 1 . 4 Wheel . | . . . . . Hover . | . . . . . Flight . | . . . . . Utility 7 | 1 4 1 . 1 Device 1 | . . . . 1 Storage 5 | 1 4 . . . Processor . | . . . . . Hackware . | . . . . . Protection 1 | . . 1 . . Artifact . | . . . . . Weapon 7 | 1 2 . . 4 Energy Gun . | . . . . . Energy Cannon 1 | . . . . 1 Ballistic Gun 1 | 1 . . . . Ballistic Cannon 4 | . 2 . . 2 Launcher 1 | . . . . 1 Special Weapon . | . . . . . Impact Weapon . | . . . . . Slashing Weapon . | . . . . . Piercing Weapon . | . . . . . Special Melee Weapon . | . . . . . Unidentified Prototypes 1 | . . . . 1 Parts Lost 15 | . . . . 15 Power 3 | . . . . 3 Propulsion 6 | . . . . 6 Utility 1 | . . . . 1 Weapon 5 | . . . . 5 Highest Loss Streak 6 | . . . . 6 To Critical Strikes . | . . . . . Average Backups 9 | 1 6 9 12 8 Power . | . 1 1 1 . Propulsion 3 | 1 2 3 5 2 Utility 1 | . . 1 2 1 Weapon 3 | . 3 4 4 3 Tool/Special . | . . . . . Unused Backups 3 | . . . . 3 Power . | . . . . . Propulsion 3 | . . . . 3 Utility . | . . . . . Weapon . | . . . . . Tool/Special . | . . . . . Average Slot Usage (%) 92 | . 88 93 100 82 Engine 13 | . 14 14 14 13 Treads 1 | . . . . 5 Leg 26 | . 28 28 28 21 Storage 14 | . 20 14 14 14 Protection 8 | . . 7 14 2 Ballistic Cannon 25 | . 20 28 28 22 Peak Build Rating 22 | 5 10 13 14 22 Average Rating 11 | 3 8 10 13 11 On Entrance 8 | . 5 9 13 14 Avg Prop Armor Cover (%) . | . . . . . Naked Turns . | . . . . . Heaviest Build 53 | 11 53 34 34 40 Greatest Support 40 | 20 20 25 25 40 Greatest Overweight (x) 3 | . 2 1 1 3 Average Overweight (x) . | . 1 1 1 . Largest Inventory Capacity 20 | 8 20 15 15 15 Average Capacity 14 | 6 14 15 15 15 Most Carried 15 | 3 9 15 15 15 Average Carried 11 | 1 6 10 14 9 Final Capacity 15 | 8 15 15 15 15 Final Carried 15 | 3 9 15 15 4 Class Distribution -------------------- 100% | Mutant Dominant Class ---------------- Mutant | -10/Materials Mutant | -10/Mines Mutant | -10/Exiles Mutant | -9/Mines Resources | -11 -10 -10 -10 -9 ----------- Run | Yrd Mat Min Exi Min Matter Collected 950 | 210 76 225 . 439 Remotely . | . . . . . Salvage Created 636 | . 60 154 . 422 Parts 34 | . 1 9 . 24 Haulers Intercepted . | . . . . . Recyclers Shooed 2 | . . 2 . . Parts Field Recycled . | . . . . . Retrieved Matter . | . . . . . Parts Self-Destructed . | . . . . . Prevented . | . . . . . Parts Restored . | . . . . . Kills | -11 -10 -10 -10 -9 ------- Run | Yrd Mat Min Exi Min Combat Hostiles Destroyed 30 | . 2 5 . 23 Cannons 23 | . 2 5 . 16 AOE 7 | . . . . 7 Classes Destroyed 6 | . 1 2 . 3 Worker 2 | . . . . 2 Recycler 1 | . . 1 . . Swarmer 10 | . . 4 . 6 Grunt 8 | . 2 1 . 5 Duelist 1 | . . . . 1 Assembled 11 | . . . . 11 Best Kill Streak 11 | . 2 2 . 11 Combat Bots Only 10 | . 2 2 . 10 Max Kills in Single Turn 4 | . 1 1 . 4 Gunslinging . | . . . . . Exploded 4 | . . . . 4 Melee . | . . . . . Uniques/NPCs Destroyed . | . . . . . Combat | -11 -10 -10 -10 -9 -------- Run | Yrd Mat Min Exi Min Hostile Shots Fired 177 | . 9 34 . 134 Missed 36 | . 3 6 . 27 Hits 141 | . 6 28 . 107 Melee 15 | . . . . 15 Projectile 126 | . 6 28 . 92 AOE 12 | . . . . 12 Critical Strikes 1 | . 1 . . . Damage Taken 2125 | . 78 229 . 1818 Core 276 | . . 34 . 242 Absorbed by Shields . | . . . . . Redirected to Shielding 20 | . . 6 . 14 Core Remaining (%) 100 | 100 . . . . Volleys Fired 62 | 1 5 15 . 41 Largest 2 | 1 2 2 . 2 Hottest 66 | 20 66 66 . 66 Shots Fired 113 | 1 10 30 . 72 Gun 1 | 1 . . . . Cannon 108 | . 10 30 . 68 Launcher 4 | . . . . 4 Special . | . . . . . Kinetic 107 | 1 10 30 . 66 Thermal . | . . . . . Explosive 4 | . . . . 4 Electromagnetic 2 | . . . . 2 Robot Hit Streak 7 | . 4 3 . 7 Robot Miss Streak 7 | . 1 4 . 7 Penetration Max . | . . . . . Secondary Targets . | . . . . . Shots Hit Robots 57 | . 7 13 . 37 Core Hits 53 | . 3 8 . 42 Critical Kills . | . . . . . Critical Parts Destroyed . | . . . . . Critical Strikes 2 | . . . . 2 Blast 2 | . . . . 2 Melee Attacks . | . . . . . Impact . | . . . . . Slashing . | . . . . . Piercing . | . . . . . Sneak Attacks . | . . . . . Combat Hostiles . | . . . . . Follow-up Attacks . | . . . . . Damage Inflicted 1771 | . 148 298 . 1325 Guns . | . . . . . Cannons 1230 | . 148 282 . 800 Explosions 524 | . . . . 524 Melee . | . . . . . Ramming 17 | . . 16 . 1 Kinetic 1225 | . 148 282 . 795 Thermal . | . . . . . Explosive 243 | . . . . 243 Electromagnetic 286 | . . . . 286 Impact . | . . . . . Slashing . | . . . . . Piercing . | . . . . . Highest Corruption 12 | . . . . 12 Average Corruption 11 | . . . . 11 Corruption Purged . | . . . . . Corruption Blocked . | . . . . . Effects 27 | . . . . 27 Message Errors 7 | . . . . 7 Matter Fused 6 | . . . . 6 Heat Flow Errors 8 | . . . . 8 Energy Discharges 1 | . . . . 1 Data Loss (minor) 3 | . . . . 3 Data Loss (major) 1 | . . . . 1 Misfires 1 | . . . . 1 Overload Shots . | . . . . . Overflow Damage 28 | . . 7 . 21 Projectiles 20 | . . 7 . 13 Explosions 8 | . . . . 8 Melee . | . . . . . Knockbacks 18 | . 3 7 . 8 Impact . | . . . . . Kinetic 16 | . 3 5 . 8 Secondary 2 | . . 2 . . Self-Inflicted Damage 43 | . . . . 43 Shots 2 | . . . . 2 Rammed . | . . . . . Targets Rammed 3 | . . 2 . 1 Kicked 3 | . . 2 . 1 Crushed . | . . . . . Highest Temperature 401 | . 93 48 . 401 Average Temperature 75 | . 56 17 . 91 Received Heat Transfer 351 | . 63 . . 288 Effects 1 | . . . . 1 Interference 1 | . . . . 1 Siege Activations . | . . . . . Martial Activations . | . . . . . Shielding Activations . | . . . . . Robots Disrupted . | . . . . . Combat Hostiles . | . . . . . Robots Corrupted . | . . . . . Combat Hostiles . | . . . . . Parts Fried . | . . . . . Impact Corruptions . | . . . . . Robots Melted . | . . . . . Combat Hostiles . | . . . . . Parts Melted . | . . . . . Heat Transferred . | . . . . . Parts Sabotaged . | . . . . . Parts Stolen . | . . . . . Parts Stripped . | . . . . . Power Chain Reactions . | . . . . . Latent Energy Used 109 | . . . . 109 LE Corruption 2 | . . . . 2 Alert | -11 -10 -10 -10 -9 ------- Run | Yrd Mat Min Exi Min Maximum Alert Level . | . . . . . Low Security (%) 100 | 100 100 100 . 100 Level 1 . | . . . . . Level 2 . | . . . . . Level 3 . | . . . . . Level 4 . | . . . . . Level 5 . | . . . . . High Security . | . . . . . Max Security . | . . . . . Peak Influence 139 | . 41 56 . 139 Initial 7 | . . 7 . . Average 22 | . 5 10 . 40 Influence Increases 576 | . 51 155 . 370 Destroy 0b10 Robot/C 400 | . 40 120 . 240 Destroy 0b10 Robot/NC 25 | . . 5 . 20 Destroy Leader 60 | . 10 10 . 40 Allied During Kill 2 | . . 2 . . Trap Triggered on 0b10 10 | . . . . 10 Disable Machine 15 | . . . . 15 Destroy Structure 34 | . 1 3 . 30 Lose Combat Pursuer 30 | . . 15 . 15 Influence Decreases 529 | . 30 176 . 323 Entered New Map 14 | . . 14 . . Time Decay 370 | . 30 155 . 185 Lost Part 138 | . . . . 138 Lost Ally 7 | . . 7 . . Squads Dispatched . | . . . . . Investigation . | . . . . . Extermination . | . . . . . Reinforcement . | . . . . . Assault . | . . . . . Garrison . | . . . . . Intercept . | . . . . . Searches Triggered . | . . . . . Construction Impeded . | . . . . . Haulers Reinforced . | . . . . . Active Scanning Responses . | . . . . . Cargo Convoy Interrupts . | . . . . . Stealth | -11 -10 -10 -10 -9 --------- Run | Yrd Mat Min Exi Min Distress Signals 2 | . 1 1 . . Communications Jammed . | . . . . . Distress Signals . | . . . . . Times Spotted 39 | . 3 9 . 27 Peak Tracking Total 10 | . 3 3 . 10 Tactical Retreats 3 | . . 1 . 2 Traps | -11 -10 -10 -10 -9 ------- Run | Yrd Mat Min Exi Min Traps Triggered . | . . . . . Indirectly . | . . . . . Trap Hack Attempts . | . . . . . Triggered . | . . . . . Disarmed . | . . . . . Reprogrammed . | . . . . . Reused 2 | . . . . 2 Traps Extracted . | . . . . . Installed 2 | . . . . 2 Triggered 1 | . . . . 1 Most Traps Carried 2 | . . 2 2 2 Machines | -11 -10 -10 -10 -9 ---------- Run | Yrd Mat Min Exi Min Machines Disabled 1 | . . . . 1 Max in Single Turn 1 | . . . . 1 Machines Repaired . | . . . . . Machines Dismantled . | . . . . . Machines Sabotaged . | . . . . . Overloaded Fab Kills . | . . . . . Hacking | -11 -10 -10 -10 -9 --------- Run | Yrd Mat Min Exi Min Machines Accessed 4 | . . . 4 . Terminals . | . . . . . Fabricators . | . . . . . Repair Stations . | . . . . . Recycling Units . | . . . . . Scanalyzers . | . . . . . Garrison Access . | . . . . . Total Hacks 6 | . . . 6 . Successful 6 | . . . 6 . Failed . | . . . . . Catastrophic . | . . . . . Database Lockouts . | . . . . . Manual 3 | . . . 3 . Terminals . | . . . . . Fabricators . | . . . . . Repair Stations . | . . . . . Recycling Units . | . . . . . Scanalyzers . | . . . . . Garrison Access . | . . . . . Terminal Hacks 6 | . . . 6 . Record 5 | . . . 5 . Proto ID Catalog 1 | . . . 1 . Fabricator Hacks . | . . . . . Repair Station Hacks . | . . . . . Recycling Unit Hacks . | . . . . . Scanalyzer . | . . . . . Garrison Access Hacks . | . . . . . Unauthorized Hacks . | . . . . . Terminals . | . . . . . Fabricators . | . . . . . Repair Stations . | . . . . . Recycling Units . | . . . . . Scanalyzers . | . . . . . Garrison Access . | . . . . . Data Cores Recovered . | . . . . . Used . | . . . . . Hacking Detections . | . . . . . Full Trace Events . | . . . . . Feedback Events . | . . . . . Feedback Blocked . | . . . . . Robot Schematics Acquired . | . . . . . Robots Built . | . . . . . Authchips . | . . . . . Time . | . . . . . Total Robot Build Rating . | . . . . . Part Schematics Acquired . | . . . . . Parts Built . | . . . . . Authchips . | . . . . . Time . | . . . . . Total Part Build Rating . | . . . . . Part Studies Acquired . | . . . . . Parts Repaired . | . . . . . Time . | . . . . . Parts Recycled . | . . . . . Recycled Matter . | . . . . . Retrieved Matter . | . . . . . Retrieved Components . | . . . . . Parts Scanalyzed . | . . . . . Part Schematics Acquired . | . . . . . Parts Damaged . | . . . . . Bothacking | -11 -10 -10 -10 -9 ------------ Run | Yrd Mat Min Exi Min Used RIF Installer . | . . . . . Robots Hacked . | . . . . . Non-combat . | . . . . . Combat . | . . . . . Robot Hacks Applied . | . . . . . Relay Couplers Released . | . . . . . Fabnet Peak Effective % . | . . . . . Robots Rewired . | . . . . . Allies Hacked . | . . . . . Hacks Repelled . | . . . . . Allies | -11 -10 -10 -10 -9 -------- Run | Yrd Mat Min Exi Min Total Allies 2 | . . 2 . . Largest Group 2 | . . 2 . . Highest-Rated Group 47 | . . 47 . . Highest-Rated Ally 31 | . . 31 . . Total Orders . | . . . . . Ally Attacks 6 | . . 6 . . Total Damage 105 | . . 105 . . Kills 1 | . . 1 . . Allies Corrupted . | . . . . . Allies Melted . | . . . . . Intel | -11 -10 -10 -10 -9 ------- Run | Yrd Mat Min Exi Min Active Infowar (turns) 11 | . . . . 11 Sensors 11 | . . . . 11 Robot Analysis Total . | . . . . . Derelict Logs Recovered 2 | . . 2 . . Drone Launches . | . . . . . Drone Recoveries . | . . . . . Exploration | -11 -10 -10 -10 -9 ------------- Run | Yrd Mat Min Exi Min Turns Passed 3474 | 53 317 799 1448 857 Spaces Moved 1686 | 35 130 381 762 378 Core 5 | 5 . . . . Treads 72 | . . . . 72 Legs 1609 | 30 130 381 762 306 Wheels . | . . . . . Hover . | . . . . . Flight . | . . . . . Fastest Speed 50 | 50 120 190 190 160 Average Speed 189 | 110 215 190 190 185 Slowest Speed 330 | 120 260 190 190 330 Overloaded Moves . | . . . . . Propulsion Burnouts . | . . . . . Robots Hopped . | . . . . . Potential Cave-ins . | . . . . . Cave-ins Triggered . | . . . . . Exploration Rate (%) 50 | 4 28 65 91 62 Regions Visited 4 Branch Regions 3 Pre-discovered Areas 2 | . . 2 . . Known Exits Taken . | . . . . . Unknown Exits Taken 4 | 1 1 1 1 . Scrap Searched 3 | . . 1 . 2 Spaces Dug . | . . . . . Terrain Destroyed 37 | . 1 3 . 33 Melee . | . . . . . Projectile 6 | . 1 3 . 2 AOE 31 | . . . . 31 Terrain Rammed . | . . . . . Walls Destroyed . | . . . . . Machines Disabled . | . . . . . Actions | -11 -10 -10 -10 -9 --------- Run | Yrd Mat Min Exi Min Total 1853 | 48 156 424 763 462 Wait 25 | . . 18 . 7 Move 1682 | 34 129 380 761 378 Hop . | . . . . . Pick Up 32 | 8 10 7 1 6 Fast Attach . | . . . . . Attach 19 | 5 2 1 . 11 Detach 1 | . 1 . . . Swap 16 | . 6 1 . 9 Drop 11 | . 3 . 1 7 Fire 62 | 1 5 15 . 41 Melee . | . . . . . Ram . | . . . . . Kick 3 | . . 2 . 1 Crush . | . . . . . Escape Stasis . | . . . . . Rewire . | . . . . . Trap 2 | . . . . 2 Miscellaneous . | . . . . . Route ------- -11/Scrapyard -10/Materials -10/Mines (discovered 2 exits: [*Mat] / *Exi) -10/Exiles -9/Mines History --------- Turn | Location | Event 22 | -11/Scrapyard | Discovered new exit (range 16) 54 | -11/Scrapyard | Entered Materials 305 | -10/Materials | Build established: Mutant 354 | -10/Materials | Discovered new exit (range 10) 371 | -10/Materials | Entered Mines 372 | -10/Mines | Met a Derelict testing a Signal Generator 390 | -10/Mines | Found Signal Generator 395 | -10/Mines | Met a Derelict bent on vengeance 690 | -10/Mines | Learned Materials stockpile data 778 | -10/Mines | Found a hidden stash of uninstalled traps 799 | -10/Mines | Found a damaged Exp. Sensor Array with a note attached 803 | -10/Mines | Found Prototype Device 840 | -10/Mines | Discovered new exit (range 5) 1052 | -10/Mines | Learned location of Storage (-8) 1058 | -10/Mines | Learned location of Mines (-9) 1160 | -10/Mines | Deemed a non-threat by the Exiles lab entrance 1160 | -10/Mines | Discovered new exit (range 5) 1170 | -10/Mines | Entered Exiles 1220 | -10/Exiles | Met 8R-AWN 1264 | -10/Exiles | Met EX-HEX 1334 | -10/Exiles | Met EX-BIN 1357 | -10/Exiles | Aligned with FarCom system 1359 | -10/Exiles | Given EX-Vault access code 1626 | -10/Exiles | Opened EX-Vault 1685 | -10/Exiles | Warned to stay clear of 0b10 Research branches 1808 | -10/Exiles | Found Latent Energy Streamer 1900 | -10/Exiles | Met EX-DEC 2002 | -10/Exiles | Discovered new exit (range 14) 2296 | -10/Exiles | Visited The Gauntlet 2618 | -10/Exiles | Left Exiles lab with Latent Energy Streamer 2618 | -10/Exiles | Entered Mines 2695 | -9/Mines | Assembled infested the area 2700 | -9/Mines | Assisted by a Guerilla fighting off Assembled 2765 | -9/Mines | System corruption reached 10% 2798 | -9/Mines | Destroyed 10 combat bots 2798 | -9/Mines | Lost 6 parts (1p3n1u1w) 3158 | -9/Mines | Core integrity fell below 50% 3335 | -9/Mines | Core integrity fell below 20% 3464 | -9/Mines | Identified Exp. Sensor Array 3475 | -9/Mines | Destroyed by D-53 Grenadier with Mini Grenade Launcher Last Messages --------------- Acquired 59 matter. System corrupted: Component data lost. Acquired 8 matter. Dropped Lgt. Treads. Dropped Imp. Treads. Dropped Lgt. Treads. System corrupted: Substantial component data lost. System corrupted: Heat flow error (+153). GRB>KS1,UUI%SDP,HMN7YFQSFGO2X% System corrupted: FCS attempts to trigger Latent Energy Streamer. Grenade Launcher destroyed. Identified Exp. Sensor Array. The unstable cave ceiling collapses. Dropped Signal Generator. Imp. Light Cannon destroyed. Aluminum Leg destroyed. Latent Energy Streamer destroyed. Lgt. Ion Engine destroyed. Aluminum Leg destroyed. The unstable cave ceiling collapses. Map ----- +----------------------------------------------------+ | ???????????????????????????????????????? | | ???????????????????????????????????????? | | ???????????????????????????????????????? | | ???????????????????????????????????????? | | ???????????????????????????????????????? | | ???????????????????????????????????????? | | ??????????????????????????????????????? | | ??????????????????????????????????????? | | ??????????????????????????????????????? | | ??????????????????????????????????????? | | ??????????????????????????????????????? | | ??????????????????????????????????????? | | ??????????????????????????????????????? | | ??????????????????????????????????????? | | #??????????????????????????????????????? | | #??????????????????????????????????????? | | #??????#####??????????##???????????????? | | #??????# ?????????### #?#####????????? | | ####?### ##??????#### ## ##???????? | | %! ### ]!"######## #???????? | | =% % =?= #???????? | | * = * %%% % dd #???????? | | = ####### #???####?? | | ### #???????## # # ### ##? | | ###?## #???????# #? | | ?????## ##????????# @ #? | | ??????####????????# ## ##? | | ??????????????????# #######?? | | ??????????????????## ##???????? | | ???????????????????### ###????????? | | | | | | | | | | | | | | | | | | | | | | | | | | | | | | | | | | | | | | | | | +----------------------------------------------------+ Best States ------------- Heat Dissipation 25 Energy Generation 10 Energy Capacity 250 Matter Stores 300 Matter Capacity 300 Sight Range 16 Robot Scan Range 20 Terrain Scan Density 10 Core Shielding 20 Evasion (%) 55 Recoil Reduction 2 Item Schematics ----------------- None Robot Schematics ------------------ None Fabricated ------------ Nothing Repaired ---------- Nothing Studied --------- None Alien Tech Used ----------------- None Achievements -------------- None Challenges ------------ None Game ------ Seed InterdictionArcPick Manual? 0 Play Time 00:34:57 Cumulative 8.0 hours Start 2026.09.07 @ 07:28:34 End 2026.09.07 @ 08:09:33 Sessions 1 Manual Loads 0 Difficulty Rogue Special Mode None Game No. 14 Rogue 14 Adventurer 0 Explorer 0 Win Type - Total 0 Types 0/0/0/0/0/0/0/0/0/0 Lore% 4 Gallery% 10 Achievement% 10 Wizard Run 0 Options --------- Layout 0 ASCII 0 Keyboard 0 Movement Mouse Keybinds 0 Fullscreen 2 Font 18/SmallcapsGlow Map View 76x50 Zoom Use 0% Tactical HUD 0 Map Filters NONE Filters NONE Steam 1 RUN: 7e315519-0eea-4869-ac76-0279be93eb31